[Event "EYCC Girls-U12 2019"]
[Site "Bratislava"]
[Date "2019.08.06"]
[Round "5.1"]
[White "Van, Foreest Machteld"]
[Black "Shvedova, Alexandra"]
[Result "0-1"]
[ECO "B90"]
[WhiteElo "2186"]
[BlackElo "1932"]
[Annotator "NA"]
[PlyCount "104"]
[EventDate "2019.08.02"]
[EventType "swiss"]
[EventCountry "SVK"]
[SourceTitle "playchess.com"]
[Source "ChessBase"]
[SourceQuality "1"]
[TimeControl "40/5400+30:1800+30"]

1. e4 {[%emt 0:00:00]} c5 {[%emt 0:00:00]} 2. Nf3 {[%emt 0:00:00]} d6 {[%emt 0:00:00]} 3. d4 {[%emt 0:00:00]} cxd4 {[%emt 0:00:00]} 4. Nxd4 {[%emt 0:00:00]} Nf6 {[%emt 0:00:00]} 5. Nc3 {[%emt 0:00:00]} a6 {[%emt 0:00:00]} 6. h3 {[%emt 0:01:18]} e5 {[%emt 0:00:58]} 7. Nde2 {[%emt 0:00:13]} h5 {[%emt 0:00:12]} 8. Bg5 {[%emt 0:00:15]} Be6 {[%emt 0:01:43]} 9. Bxf6 {[%emt 0:00:08]} Qxf6 {[%emt 0:00:12]} 10. Nd5 {[%emt 0:00:04]} Bxd5 {[%emt 0:02:35]} 11. Qxd5 {[%emt 0:02:11]} Nc6 {[%emt 0:01:11]} 12. Nc3 {[%emt 0:04:41]} Qg6 {[%emt 0:13:56]} 13. Na4 {[%emt 0:13:07]} Be7 {[%emt 0:16:43]} 14. Nb6 {[%emt 0:00:32]} Rd8 {[%emt 0:02:21]} 15. O-O-O {[%emt 0:02:37]} O-O {[%emt 0:02:07]} 16. c3 {[%emt 0:01:50]} Bg5+ {[%emt 0:03:59]} 17. Kb1 {[%emt 0:05:57]} Ne7 {[%emt 0:09:50]} 18. Qd3 {[%emt 0:15:50]} d5 {[%emt 0:04:26]} 19. h4 {[%emt 0:10:06]} Bh6 {[%emt 0:07:15]} 20. Na4 {[%emt 0:02:54]} Qxe4 {[%emt 0:01:23]} 21. Qxe4 {[%emt 0:00:16]} dxe4 {[%emt 0:00:02]} 22. Be2 {[%emt 0:00:50]} Nd5 {[%emt 0:06:13]} 23. g3 {[%emt 0:03:38]} Nf6 {[%emt 0:03:28]} 24. Nc5 {[%emt 0:00:25]} e3 {[%emt 0:03:01]} 25. fxe3 {[%emt 0:01:28]} Bxe3 {[%emt 0:00:15]} 26. Nxb7 {[%emt 0:00:52]} Rb8 {[%emt 0:00:47]} 27. Nd6 {[%emt 0:01:48]} Bf2 {[%emt 0:01:37]} 28. Bc4 {[%emt 0:05:41]} e4 {[%emt 0:01:19]} 29. Bxa6 {[%emt 0:08:44]} e3 {[%emt 0:01:35]} 30. Bc4 {[%emt 0:03:06]} Rb6 {[%emt 0:05:06]} 31. Kc2 {[%emt 0:10:39]} Ng4 {[%emt 0:03:05]} 32. Be2 {[%emt 0:04:10]} Bxg3 {[%emt 0:02:12]} 33. Nf5 {[%emt 0:00:40]} Bf2 {[%emt 0:01:24]} 34. Ne7+ {[%emt 0:00:45]} Kh8 {[%emt 0:00:16]} 35. Nd5 {[%emt 0:00:53]} Rb7 {[%emt 0:00:45]} 36. Nf4 {[%emt 0:00:14]} g6 {[%emt 0:00:58]} 37. Rd5 {[%emt 0:00:35]} Nf6 {[%emt 0:00:24]} 38. Re5 {[%emt 0:00:36]} Rd8 {[%emt 0:01:09]} 39. Rd1 {[%emt 0:00:33]} Rxd1 {[%emt 0:04:29]} 40. Bxd1 {[%emt 0:00:00]} Bg3 41. Rxe3 {[%emt 0:08:43]} Bxf4 {[%emt 0:00:35]} 42. Rd3 {[%emt 0:01:34]} Kg7 {[%emt 0:04:43]} 43. b4 {[%emt 0:01:08]} Ra7 {[%emt 0:08:49]} 44. Kb3 {[%emt 0:02:53]} Ne4 {[%emt 0:00:09]} 45. a4 {[%emt 0:00:47]} Nd2+ {[%emt 0:01:55]} 46. Ka2 {[%emt 0:00:43]} f5 {[%emt 0:04:24]} 47. b5 {[%emt 0:02:04]} Ne4 {[%emt 0:00:37]} 48. Kb2 {[%emt 0:10:59]} Be5 {[%emt 0:02:25]} 49. Bb3 {[%emt 0:01:51]} Nxc3 {[%emt 0:00:26]} 50. Ka3 {[%emt 0:01:45]} Nxb5+ {[%emt 0:00:13]} 51. Kb4 {[%emt 0:00:01]} Nd4 {[%emt 0:00:26]} 52. Bc4 {[%emt 0:00:31]} f4 {[%emt 0:00:26]} 0-1

[Event "EYCC Girls-U12 2019"]
[Site "Bratislava"]
[Date "2019.08.06"]
[Round "5.2"]
[White "Musabayeva, Diana"]
[Black "Karmanova, Olga Dm."]
[Result "1/2-1/2"]
[ECO "B18"]
[WhiteElo "1679"]
[BlackElo "1838"]
[Annotator "NA"]
[PlyCount "65"]
[EventDate "2019.08.02"]
[EventType "swiss"]
[EventCountry "SVK"]
[SourceTitle "playchess.com"]
[Source "ChessBase"]
[SourceQuality "1"]
[TimeControl "40/5400+30:1800+30"]

1. e4 {[%emt 0:00:00]} c6 {[%emt 0:00:00]} 2. d4 {[%emt 0:00:00]} d5 {[%emt 0:00:00]} 3. Nc3 {[%emt 0:00:14]} dxe4 {[%emt 0:00:00]} 4. Nxe4 {[%emt 0:00:04]} Bf5 {[%emt 0:00:00]} 5. Ng3 {[%emt 0:00:26]} Bg6 {[%emt 0:00:01]} 6. Nf3 {[%emt 0:00:41]} e6 {[%emt 0:00:29]} 7. Ne5 {[%emt 0:02:23]} Nd7 {[%emt 0:00:35]} 8. Nxg6 {[%emt 0:01:08]} hxg6 {[%emt 0:00:11]} 9. Bd3 {[%emt 0:07:04]} Ngf6 {[%emt 0:02:41]} 10. h3 {[%emt 0:07:58]} Bd6 {[%emt 0:06:35]} 11. Ne4 {[%emt 0:04:37]} Nxe4 {[%emt 0:00:39]} 12. Bxe4 {[%emt 0:00:03]} Nf6 {[%emt 0:00:10]} 13. Bf3 {[%emt 0:07:48]} Qd7 {[%emt 0:04:12]} 14. Bg5 {[%emt 0:03:55]} Bc7 {[%emt 0:05:56]} 15. Qd2 {[%emt 0:04:04]} O-O-O {[%emt 0:02:49]} 16. O-O-O {[%emt 0:00:44]} e5 {[%emt 0:12:25]} 17. Bg4 {[%emt 0:05:10]} Nxg4 {[%emt 0:04:18]} 18. Bxd8 {[%emt 0:01:41]} Rxd8 {[%emt 0:01:05]} 19. hxg4 {[%emt 0:00:11]} exd4 {[%emt 0:05:25]} 20. Qe2 {[%emt 0:09:12]} Qd5 {[%emt 0:02:31]} 21. Kb1 {[%emt 0:02:47]} c5 {[%emt 0:07:50]} 22. Qf3 {[%emt 0:05:38]} Qxf3 {[%emt 0:01:21]} 23. gxf3 {[%emt 0:00:01]} Be5 {[%emt 0:02:36]} 24. Rh7 {[%emt 0:03:26]} g5 {[%emt 0:03:24]} 25. Re1 {[%emt 0:03:29]} f6 {[%emt 0:01:43]} 26. Reh1 {[%emt 0:02:58]} Rg8 {[%emt 0:01:31]} 27. Rh8 {[%emt 0:02:27]} Rxh8 {[%emt 0:00:04]} 28. Rxh8+ {[%emt 0:00:08]} Kc7 {[%emt 0:01:14]} 29. Rg8 {[%emt 0:00:29]} b5 {[%emt 0:03:03]} 30. Rxg7+ {[%emt 0:00:15]} Kb6 {[%emt 0:00:07]} 31. Rg6 {[%emt 0:01:58]} Ka5 {[%emt 0:01:00]} 32. b3 {[%emt 0:05:36]} Kb4 {[%emt 0:01:51]} 33. Rg7 {[%emt 0:01:41]} 1/2-1/2

[Event "EYCC Girls-U12 2019"]
[Site "Bratislava"]
[Date "2019.08.06"]
[Round "5.3"]
[White "Buyuk, Ecrin Efsa"]
[Black "Vlasova, Olesia"]
[Result "0-1"]
[ECO "B31"]
[WhiteElo "1592"]
[BlackElo "1799"]
[Annotator "NA"]
[PlyCount "123"]
[EventDate "2019.08.02"]
[EventType "swiss"]
[EventCountry "SVK"]
[SourceTitle "playchess.com"]
[Source "ChessBase"]
[SourceQuality "1"]
[TimeControl "40/5400+30:1800+30"]

1. e4 {[%emt 0:00:00]} c5 {[%emt 0:00:00]} 2. Nf3 {[%emt 0:00:00]} Nc6 {[%emt 0:00:00]} 3. Bb5 {[%emt 0:00:00]} g6 {[%emt 0:00:00]} 4. Bxc6 {[%emt 0:00:27]} dxc6 {[%emt 0:00:00]} 5. O-O {[%emt 0:02:00]} Bg7 {[%emt 0:00:03]} 6. h3 {[%emt 0:02:43]} e5 {[%emt 0:02:05]} 7. d3 {[%emt 0:01:30]} h6 {[%emt 0:01:23]} 8. c3 {[%emt 0:03:22]} Qe7 {[%emt 0:07:00]} 9. Na3 {[%emt 0:07:54]} Nf6 {[%emt 0:03:39]} 10. Nc4 {[%emt 0:04:10]} Nd7 {[%emt 0:00:19]} 11. Be3 {[%emt 0:01:58]} O-O {[%emt 0:00:52]} 12. Re1 {[%emt 0:06:21]} b6 {[%emt 0:02:37]} 13. d4 {[%emt 0:02:30]} exd4 {[%emt 0:02:37]} 14. cxd4 {[%emt 0:00:11]} Ba6 {[%emt 0:06:49]} 15. Na3 {[%emt 0:00:53]} cxd4 {[%emt 0:06:43]} 16. Bxd4 {[%emt 0:00:54]} c5 {[%emt 0:04:36]} 17. Bxg7 {[%emt 0:00:46]} Kxg7 {[%emt 0:00:10]} 18. Qa4 {[%emt 0:02:07]} Bb7 {[%emt 0:00:35]} 19. Rad1 {[%emt 0:06:54]} Nf6 {[%emt 0:04:27]} 20. Nc4 {[%emt 0:06:52]} Qc7 {[%emt 0:07:50]} 21. Nd6 {[%emt 0:04:04]} Bc6 {[%emt 0:05:31]} 22. Qc4 {[%emt 0:01:21]} Rad8 {[%emt 0:08:28]} 23. e5 {[%emt 0:01:31]} Ng8 {[%emt 0:03:17]} 24. Qf4 {[%emt 0:06:49]} Kh7 {[%emt 0:08:26]} 25. Qg3 {[%emt 0:09:53]} Qe7 {[%emt 0:02:20]} 26. Nh4 {[%emt 0:02:55]} Qe6 {[%emt 0:00:28]} 27. f4 {[%emt 0:09:27]} Ne7 {[%emt 0:03:27]} 28. Qd3 {[%emt 0:02:07]} Rg8 {[%emt 0:02:46]} 29. g4 {[%emt 0:09:35]} Kh8 {[%emt 0:02:48]} 30. f5 {[%emt 0:01:40]} gxf5 {[%emt 0:00:37]} 31. Kh2 {[%emt 0:02:08]} fxg4 {[%emt 0:02:52]} 32. Qd2 {[%emt 0:02:02]} Rdf8 {[%emt 0:05:37]} 33. Qf4 {[%emt 0:00:44]} Kh7 {[%emt 0:03:57]} 34. Ne4 {[%emt 0:00:24]} Bxe4 {[%emt 0:01:14]} 35. Qxe4+ {[%emt 0:00:01]} Ng6 {[%emt 0:00:00]} 36. Rd6 {[%emt 0:01:10]} g3+ {[%emt 0:01:23]} 37. Kg2 {[%emt 0:00:22]} Qe7 {[%emt 0:01:15]} 38. Rf6 {[%emt 0:00:33]} Kh8 {[%emt 0:01:24]} 39. Kg1 {[%emt 0:00:39]} Qd8 {[%emt 0:00:55]} 40. Nf5 Qd2 41. Qe2 {[%emt 0:18:59]} Qxe2 {[%emt 0:06:25]} 42. Rxe2 {[%emt 0:00:02]} Rd8 {[%emt 0:04:06]} 43. Nd6 {[%emt 0:03:37]} Rd7 {[%emt 0:00:46]} 44. Re3 {[%emt 0:03:56]} Kh7 {[%emt 0:02:54]} 45. Rxg3 {[%emt 0:03:32]} Nxe5 {[%emt 0:01:18]} 46. Rxg8 {[%emt 0:00:10]} Kxg8 {[%emt 0:00:18]} 47. Kg2 {[%emt 0:01:34]} Kg7 {[%emt 0:01:05]} 48. Ne8+ {[%emt 0:00:05]} Kf8 {[%emt 0:00:28]} 49. Rf5 {[%emt 0:00:19]} Kxe8 {[%emt 0:01:08]} 50. Rxe5+ {[%emt 0:00:03]} Re7 {[%emt 0:00:16]} 51. Rh5 {[%emt 0:00:18]} Re2+ {[%emt 0:00:15]} 52. Kf3 {[%emt 0:00:01]} Rxb2 {[%emt 0:00:10]} 53. Rxh6 {[%emt 0:00:07]} Rxa2 {[%emt 0:00:08]} 54. h4 {[%emt 0:00:13]} Kf8 {[%emt 0:01:52]} 55. Rc6 {[%emt 0:00:09]} Ra3+ {[%emt 0:00:31]} 56. Kg4 {[%emt 0:00:10]} Ra4+ {[%emt 0:00:14]} 57. Kg5 {[%emt 0:00:04]} Kg7 {[%emt 0:01:17]} 58. h5 {[%emt 0:00:03]} f6+ {[%emt 0:04:44]} 59. Kf5 {[%emt 0:02:00]} Kh6 {[%emt 0:00:34]} 60. Rc7 {[%emt 0:00:28]} Ra1 {[%emt 0:00:31]} 61. Kxf6 {[%emt 0:00:52]} Kxh5 {[%emt 0:00:06]} 62. Ke5 {[%emt 0:00:24]} 0-1

[Event "EYCC Girls-U12 2019"]
[Site "Bratislava"]
[Date "2019.08.06"]
[Round "5.4"]
[White "Gadasi, Noam"]
[Black "Karaivanova, Petya"]
[Result "0-1"]
[ECO "C50"]
[WhiteElo "1585"]
[BlackElo "1792"]
[Annotator "NA"]
[PlyCount "112"]
[EventDate "2019.08.02"]
[EventType "swiss"]
[EventCountry "SVK"]
[SourceTitle "playchess.com"]
[Source "ChessBase"]
[SourceQuality "1"]
[TimeControl "40/5400+30:1800+30"]

1. e4 {[%emt 0:00:00]} e5 {[%emt 0:00:00]} 2. Nf3 {[%emt 0:00:00]} Nc6 {[%emt 0:00:00]} 3. Bc4 {[%emt 0:00:00]} Nf6 {[%emt 0:00:00]} 4. d3 {[%emt 0:00:13]} Bc5 {[%emt 0:00:00]} 5. c3 {[%emt 0:00:25]} d6 {[%emt 0:00:25]} 6. O-O {[%emt 0:00:46]} O-O {[%emt 0:00:32]} 7. Bb3 {[%emt 0:01:00]} Bb6 {[%emt 0:01:44]} 8. Nbd2 {[%emt 0:01:24]} a6 {[%emt 0:02:31]} 9. Re1 {[%emt 0:01:19]} Ng4 {[%emt 0:01:03]} 10. Re2 {[%emt 0:01:34]} Bd7 {[%emt 0:05:45]} 11. h3 {[%emt 0:03:04]} Nf6 {[%emt 0:00:55]} 12. Nf1 {[%emt 0:00:51]} h6 {[%emt 0:00:51]} 13. Ng3 {[%emt 0:09:36]} Na5 {[%emt 0:06:33]} 14. Bc2 {[%emt 0:05:17]} Nh7 {[%emt 0:05:43]} 15. Re1 {[%emt 0:02:51]} c5 {[%emt 0:05:52]} 16. a3 {[%emt 0:03:00]} Rc8 {[%emt 0:02:50]} 17. b3 {[%emt 0:06:33]} Ba7 {[%emt 0:02:18]} 18. Be3 {[%emt 0:14:50]} Bb8 {[%emt 0:06:25]} 19. Qd2 {[%emt 0:09:10]} Re8 {[%emt 0:13:42]} 20. Rec1 {[%emt 0:08:32]} Be6 {[%emt 0:02:39]} 21. Rab1 {[%emt 0:00:34]} b5 {[%emt 0:07:09]} 22. b4 {[%emt 0:04:20]} Nb7 {[%emt 0:01:59]} 23. a4 {[%emt 0:05:24]} Qf6 {[%emt 0:03:27]} 24. Nh2 {[%emt 0:03:15]} Bd7 {[%emt 0:02:46]} 25. axb5 {[%emt 0:02:45]} axb5 {[%emt 0:00:24]} 26. bxc5 {[%emt 0:00:23]} dxc5 {[%emt 0:01:03]} 27. Ne2 {[%emt 0:03:13]} Nd6 {[%emt 0:04:47]} 28. Nf1 {[%emt 0:02:54]} Qg6 {[%emt 0:01:28]} 29. Nfg3 {[%emt 0:00:29]} h5 {[%emt 0:01:59]} 30. Kh1 {[%emt 0:01:34]} h4 {[%emt 0:01:00]} 31. Nf1 {[%emt 0:00:06]} f5 {[%emt 0:01:21]} 32. exf5 {[%emt 0:00:48]} Bxf5 {[%emt 0:00:16]} 33. Rb2 {[%emt 0:04:27]} Kh8 {[%emt 0:02:48]} 34. f3 {[%emt 0:02:15]} Red8 {[%emt 0:03:26]} 35. Rd1 {[%emt 0:01:37]} Qh5 {[%emt 0:02:21]} 36. Qe1 {[%emt 0:01:38]} Rf8 {[%emt 0:01:39]} 37. Ng1 {[%emt 0:00:19]} Rf6 {[%emt 0:01:57]} 38. Ra2 {[%emt 0:00:54]} Be6 {[%emt 0:00:58]} 39. Raa1 {[%emt 0:00:30]} Nf5 {[%emt 0:00:48]} 40. Bf2 {[%emt 0:00:00]} Rg6 {[%emt 0:00:00]} 41. Rab1 Qg5 {[%emt 0:03:45]} 42. g4 {[%emt 0:12:41]} hxg3 {[%emt 0:02:38]} 43. Nxg3 {[%emt 0:00:44]} Nxg3+ {[%emt 0:00:47]} 44. Bxg3 {[%emt 0:00:03]} Qxg3 {[%emt 0:01:15]} 45. Qxg3 {[%emt 0:00:16]} Rxg3 {[%emt 0:00:05]} 46. Rxb5 {[%emt 0:00:15]} Bxh3 {[%emt 0:04:18]} 47. Rd2 {[%emt 0:02:15]} Bd7 {[%emt 0:03:01]} 48. Rb2 {[%emt 0:03:34]} Rg5 {[%emt 0:02:57]} 49. Bb1 {[%emt 0:05:46]} Bc6 {[%emt 0:05:49]} 50. Rf2 {[%emt 0:02:48]} Bc7 51. Rbe2 {[%emt 0:03:48]} Rf8 {[%emt 0:03:51]} 52. Re3 {[%emt 0:00:57]} Rf6 {[%emt 0:04:04]} 53. Rh2 {[%emt 0:01:54]} e4 {[%emt 0:02:33]} 54. Rh3 {[%emt 0:00:21]} exf3 {[%emt 0:01:59]} 55. Nxf3 Rfg6 {[%emt 0:01:48]} 56. Re1 {[%emt 0:01:40]} Bxf3+ 0-1

[Event "EYCC Girls-U12 2019"]
[Site "Bratislava"]
[Date "2019.08.06"]
[Round "5.5"]
[White "Mikheeva, Galina"]
[Black "Verheij, Dana"]
[Result "0-1"]
[ECO "B25"]
[WhiteElo "1952"]
[BlackElo "1497"]
[Annotator "NA"]
[PlyCount "84"]
[EventDate "2019.08.02"]
[EventType "swiss"]
[EventCountry "SVK"]
[SourceTitle "playchess.com"]
[Source "ChessBase"]
[SourceQuality "1"]
[TimeControl "40/5400+30:1800+30"]

1. e4 {[%emt 0:00:00]} c5 {[%emt 0:00:00]} 2. Nc3 {[%emt 0:00:00]} Nc6 {[%emt 0:00:00]} 3. g3 {[%emt 0:00:00]} g6 {[%emt 0:00:05]} 4. Bg2 {[%emt 0:00:00]} Bg7 {[%emt 0:00:06]} 5. d3 {[%emt 0:00:00]} d6 {[%emt 0:00:07]} 6. f4 {[%emt 0:00:27]} e6 {[%emt 0:00:11]} 7. Nf3 {[%emt 0:00:07]} Nge7 {[%emt 0:00:22]} 8. O-O {[%emt 0:00:13]} O-O {[%emt 0:00:14]} 9. Be3 {[%emt 0:00:07]} Nd4 {[%emt 0:00:16]} 10. e5 {[%emt 0:01:56]} Nef5 {[%emt 0:00:23]} 11. Bf2 {[%emt 0:02:01]} Nxf3+ {[%emt 0:03:29]} 12. Bxf3 {[%emt 0:04:43]} Nd4 {[%emt 0:00:09]} 13. Bg2 {[%emt 0:04:15]} dxe5 {[%emt 0:01:34]} 14. fxe5 {[%emt 0:04:56]} Bxe5 {[%emt 0:00:16]} 15. Ne4 {[%emt 0:02:38]} f5 {[%emt 0:01:13]} 16. Nxc5 {[%emt 0:01:24]} Qd6 {[%emt 0:01:43]} 17. Na4 {[%emt 0:13:40]} Bd7 {[%emt 0:04:29]} 18. c3 {[%emt 0:10:47]} Bxa4 {[%emt 0:01:23]} 19. Qxa4 {[%emt 0:00:12]} Ne2+ {[%emt 0:01:58]} 20. Kh1 {[%emt 0:00:04]} f4 {[%emt 0:09:56]} 21. d4 {[%emt 0:03:05]} f3 {[%emt 0:01:32]} 22. Bh3 {[%emt 0:19:05]} Bxg3 {[%emt 0:11:56]} 23. hxg3 {[%emt 0:00:12]} Nxg3+ {[%emt 0:00:24]} 24. Kg1 {[%emt 0:03:53]} Qf4 {[%emt 0:05:36]} 25. Qb5 {[%emt 0:18:28]} Ne2+ {[%emt 0:04:43]} 26. Kh1 {[%emt 0:01:21]} Qh6 {[%emt 0:00:54]} 27. Kh2 {[%emt 0:02:15]} Nf4 {[%emt 0:00:19]} 28. Bh4 {[%emt 0:02:16]} Qxh4 {[%emt 0:00:21]} 29. Rxf3 {[%emt 0:00:33]} Nxh3 {[%emt 0:01:32]} 30. Rxh3 {[%emt 0:00:07]} Rf2+ {[%emt 0:00:29]} 31. Kg1 {[%emt 0:00:17]} Qxh3 {[%emt 0:00:57]} 32. Kxf2 {[%emt 0:00:03]} Rf8+ {[%emt 0:00:11]} 33. Ke2 {[%emt 0:00:19]} Qf3+ {[%emt 0:01:19]} 34. Kd2 {[%emt 0:01:17]} Qg2+ {[%emt 0:03:44]} 35. Kd3 {[%emt 0:01:29]} Rf3+ {[%emt 0:01:28]} 36. Kc4 {[%emt 0:00:48]} Qe2+ {[%emt 0:00:14]} 37. Kb4 {[%emt 0:00:46]} Qxb2+ {[%emt 0:00:12]} 38. Ka4 {[%emt 0:00:30]} Qxa1 {[%emt 0:01:09]} 39. Qe8+ {[%emt 0:00:12]} Kg7 {[%emt 0:00:33]} 40. Qxe6 {[%emt 0:00:00]} Qd1+ {[%emt 0:00:00]} 41. Kb4 {[%emt 0:01:10]} Qb1+ {[%emt 0:01:03]} 42. Ka4 {[%emt 0:00:46]} Qc2+ 0-1

[Event "EYCC Girls-U12 2019"]
[Site "Bratislava"]
[Date "2019.08.06"]
[Round "5.6"]
[White "Manko, Mariya"]
[Black "Gasimova, Samra"]
[Result "1-0"]
[ECO "A05"]
[WhiteElo "1807"]
[BlackElo "1695"]
[Annotator "NA"]
[PlyCount "93"]
[EventDate "2019.08.02"]
[EventType "swiss"]
[EventCountry "SVK"]
[SourceTitle "playchess.com"]
[Source "ChessBase"]
[SourceQuality "1"]
[TimeControl "40/5400+30:1800+30"]

1. Nf3 {[%emt 0:00:00]} Nf6 {[%emt 0:00:00]} 2. c4 {[%emt 0:00:00]} e6 {[%emt 0:00:00]} 3. d4 {[%emt 0:00:16]} d5 {[%emt 0:00:05]} 4. g3 {[%emt 0:00:19]} dxc4 {[%emt 0:00:17]} 5. Qa4+ {[%emt 0:00:34]} Nbd7 {[%emt 0:00:28]} 6. Qxc4 {[%emt 0:00:24]} a6 {[%emt 0:00:21]} 7. a4 {[%emt 0:00:24]} b6 {[%emt 0:01:46]} 8. Bg2 {[%emt 0:00:51]} Bb7 {[%emt 0:00:12]} 9. O-O {[%emt 0:00:31]} Be7 {[%emt 0:01:54]} 10. Nc3 {[%emt 0:01:36]} c5 {[%emt 0:03:37]} 11. Rd1 {[%emt 0:05:33]} Rc8 {[%emt 0:02:11]} 12. dxc5 {[%emt 0:01:25]} Bxc5 {[%emt 0:00:57]} 13. Qd3 {[%emt 0:02:58]} Ng4 {[%emt 0:03:28]} 14. e3 {[%emt 0:01:05]} Qe7 {[%emt 0:08:30]} 15. Ne4 {[%emt 0:03:07]} Nge5 {[%emt 0:09:56]} 16. Nxe5 {[%emt 0:02:42]} Nxe5 {[%emt 0:00:08]} 17. Qe2 {[%emt 0:05:52]} O-O {[%emt 0:01:20]} 18. Bd2 {[%emt 0:01:31]} f5 {[%emt 0:06:23]} 19. Bc3 {[%emt 0:07:21]} fxe4 {[%emt 0:05:45]} 20. Bxe5 {[%emt 0:00:19]} Rf5 {[%emt 0:00:28]} 21. Bc3 {[%emt 0:08:44]} Rcf8 {[%emt 0:01:27]} 22. Rf1 {[%emt 0:00:22]} Bd5 {[%emt 0:08:20]} 23. Qxa6 {[%emt 0:05:38]} Qf7 {[%emt 0:00:14]} 24. Qe2 {[%emt 0:01:39]} e5 {[%emt 0:00:25]} 25. Qd2 {[%emt 0:09:27]} Bc4 {[%emt 0:00:59]} 26. Bxe4 {[%emt 0:01:12]} Rh5 {[%emt 0:07:22]} 27. Rad1 {[%emt 0:03:41]} Kh8 {[%emt 0:00:34]} 28. Bd5 {[%emt 0:00:30]} Qf5 {[%emt 0:00:26]} 29. Bg2 {[%emt 0:14:05]} Bxf1 {[%emt 0:00:16]} 30. Rxf1 {[%emt 0:00:08]} Rh6 {[%emt 0:01:06]} 31. b4 {[%emt 0:00:38]} Be7 {[%emt 0:00:31]} 32. a5 {[%emt 0:00:41]} bxa5 {[%emt 0:00:19]} 33. bxa5 {[%emt 0:00:08]} Qh5 {[%emt 0:01:35]} 34. h3 {[%emt 0:00:21]} Rd8 {[%emt 0:07:09]} 35. Qb2 {[%emt 0:00:40]} Re6 {[%emt 0:01:05]} 36. Ra1 {[%emt 0:00:34]} Qg6 {[%emt 0:05:19]} 37. Bxe5 {[%emt 0:03:20]} Bf6 {[%emt 0:02:28]} 38. Bxf6 {[%emt 0:01:21]} Rxf6 {[%emt 0:00:08]} 39. Qb7 {[%emt 0:01:04]} Qf5 {[%emt 0:00:55]} 40. a6 {[%emt 0:00:00]} Qxf2+ {[%emt 0:00:00]} 41. Kh1 {[%emt 0:04:47]} Rfd6 {[%emt 0:03:25]} 42. Qf3 {[%emt 0:04:44]} Qb2 {[%emt 0:01:23]} 43. Ra4 {[%emt 0:11:04]} Qb5 {[%emt 0:03:25]} 44. Rf4 {[%emt 0:02:06]} Rg8 {[%emt 0:03:59]} 45. Rf8 {[%emt 0:05:06]} Qxa6 {[%emt 0:01:24]} 46. Qf7 {[%emt 0:01:08]} Rd1+ {[%emt 0:01:58]} 47. Kh2 {[%emt 0:00:32]} 1-0

[Event "EYCC Girls-U12 2019"]
[Site "Bratislava"]
[Date "2019.08.06"]
[Round "5.7"]
[White "Zhapova, Yana"]
[Black "Sala, Giulia"]
[Result "1-0"]
[ECO "C68"]
[WhiteElo "1809"]
[BlackElo "1623"]
[Annotator "NA"]
[PlyCount "35"]
[EventDate "2019.08.02"]
[EventType "swiss"]
[EventCountry "SVK"]
[SourceTitle "playchess.com"]
[Source "ChessBase"]
[SourceQuality "1"]
[TimeControl "40/5400+30:1800+30"]

1. e4 {[%emt 0:00:00]} e5 {[%emt 0:00:00]} 2. Nf3 {[%emt 0:00:00]} Nc6 {[%emt 0:00:00]} 3. Bb5 {[%emt 0:01:13]} a6 {[%emt 0:00:16]} 4. Bxc6 {[%emt 0:00:38]} dxc6 {[%emt 0:00:12]} 5. Nc3 {[%emt 0:01:23]} f6 {[%emt 0:02:52]} 6. d4 {[%emt 0:00:37]} exd4 {[%emt 0:00:48]} 7. Nxd4 {[%emt 0:00:07]} c5 {[%emt 0:01:35]} 8. Nde2 {[%emt 0:01:40]} Qxd1+ {[%emt 0:01:18]} 9. Nxd1 {[%emt 0:00:13]} Be6 {[%emt 0:01:54]} 10. Bf4 {[%emt 0:02:38]} O-O-O {[%emt 0:03:03]} 11. Ne3 {[%emt 0:03:07]} h5 {[%emt 0:06:00]} 12. h4 {[%emt 0:05:18]} Nh6 {[%emt 0:06:02]} 13. f3 {[%emt 0:06:04]} Nf7 {[%emt 0:02:05]} 14. Kf2 {[%emt 0:05:51]} Nd6 {[%emt 0:07:10]} 15. Rad1 {[%emt 0:07:38]} Be7 {[%emt 0:05:50]} 16. Nc3 {[%emt 0:02:35]} c6 {[%emt 0:03:03]} 17. Na4 {[%emt 0:02:55]} Bf7 {[%emt 0:15:03]} 18. Nf5 {[%emt 0:02:25]} 1-0

[Event "EYCC Girls-U12 2019"]
[Site "Bratislava"]
[Date "2019.08.06"]
[Round "5.8"]
[White "Zhou, Lepu Coco"]
[Black "Tsirekidze, Barbare"]
[Result "1-0"]
[ECO "C10"]
[WhiteElo "1861"]
[BlackElo "1527"]
[Annotator "NA"]
[PlyCount "105"]
[EventDate "2019.08.02"]
[EventType "swiss"]
[EventCountry "SVK"]
[SourceTitle "playchess.com"]
[Source "ChessBase"]
[SourceQuality "1"]
[TimeControl "40/5400+30:1800+30"]

1. e4 {[%emt 0:00:00]} e6 {[%emt 0:00:00]} 2. d4 {[%emt 0:00:00]} d5 {[%emt 0:00:00]} 3. Nc3 {[%emt 0:00:00]} dxe4 {[%emt 0:00:00]} 4. Nxe4 {[%emt 0:00:11]} Nd7 {[%emt 0:00:02]} 5. Nf3 {[%emt 0:00:59]} Ngf6 {[%emt 0:00:30]} 6. Nxf6+ {[%emt 0:02:04]} Nxf6 {[%emt 0:00:56]} 7. Bd3 {[%emt 0:01:01]} Be7 {[%emt 0:00:27]} 8. O-O {[%emt 0:01:56]} O-O {[%emt 0:00:23]} 9. c3 {[%emt 0:02:09]} c5 {[%emt 0:01:31]} 10. dxc5 {[%emt 0:05:05]} Bxc5 {[%emt 0:00:17]} 11. Bg5 {[%emt 0:10:45]} h6 {[%emt 0:08:32]} 12. Bh4 {[%emt 0:03:29]} Be7 {[%emt 0:11:37]} 13. Qe2 {[%emt 0:04:44]} Qa5 {[%emt 0:13:27]} 14. Ne5 {[%emt 0:03:33]} Rd8 {[%emt 0:14:56]} 15. f4 {[%emt 0:03:00]} Bd7 {[%emt 0:09:41]} 16. Rf3 {[%emt 0:04:16]} Nd5 {[%emt 0:07:09]} 17. Bxe7 {[%emt 0:02:16]} Nxe7 {[%emt 0:00:15]} 18. Rg3 {[%emt 0:00:44]} Nf5 {[%emt 0:02:00]} 19. Rh3 {[%emt 0:06:25]} Bc6 {[%emt 0:04:48]} 20. Qh5 {[%emt 0:02:45]} Rf8 {[%emt 0:09:38]} 21. Bxf5 {[%emt 0:01:16]} exf5 {[%emt 0:00:19]} 22. Rg3 {[%emt 0:06:11]} Qb6+ {[%emt 0:06:25]} 23. Kh1 {[%emt 0:00:09]} Be8 {[%emt 0:01:51]} 24. Rd1 {[%emt 0:07:59]} Kh8 {[%emt 0:02:00]} 25. Qxf5 {[%emt 0:07:07]} Qf6 {[%emt 0:02:40]} 26. Qxf6 {[%emt 0:00:55]} gxf6 {[%emt 0:00:04]} 27. Ng4 {[%emt 0:00:25]} h5 {[%emt 0:01:58]} 28. Nxf6 {[%emt 0:00:12]} Bc6 {[%emt 0:00:12]} 29. Rg5 {[%emt 0:01:15]} Rad8 {[%emt 0:00:33]} 30. Nd5 {[%emt 0:02:04]} Rfe8 {[%emt 0:00:44]} 31. Rxh5+ {[%emt 0:01:03]} Kg7 {[%emt 0:00:14]} 32. h3 {[%emt 0:03:14]} f6 {[%emt 0:00:56]} 33. c4 {[%emt 0:03:02]} Kg6 {[%emt 0:00:42]} 34. Rh4 {[%emt 0:00:52]} Bxd5 {[%emt 0:01:20]} 35. Rg4+ {[%emt 0:00:58]} Kf7 {[%emt 0:00:18]} 36. cxd5 {[%emt 0:00:10]} Re2 {[%emt 0:00:05]} 37. Rg3 {[%emt 0:01:34]} Rxb2 {[%emt 0:00:10]} 38. Rb3 {[%emt 0:00:07]} Rxa2 {[%emt 0:00:29]} 39. Rxb7+ {[%emt 0:00:06]} Kf8 {[%emt 0:00:10]} 40. d6 {[%emt 0:00:00]} a5 {[%emt 0:00:00]} 41. Ra7 {[%emt 0:05:47]} a4 {[%emt 0:01:06]} 42. Rd5 {[%emt 0:02:31]} a3 {[%emt 0:00:49]} 43. Rda5 {[%emt 0:00:40]} Rxd6 {[%emt 0:00:46]} 44. Rxa3 {[%emt 0:00:10]} Rf2 {[%emt 0:00:20]} 45. Rb3 {[%emt 0:01:11]} Rd8 {[%emt 0:00:37]} 46. Rb4 {[%emt 0:00:31]} f5 {[%emt 0:01:30]} 47. Kg1 {[%emt 0:00:14]} Re2 48. Rb5 Kg8 {[%emt 0:01:59]} 49. Rxf5 {[%emt 0:00:23]} Rdd2 {[%emt 0:00:25]} 50. Rg5+ {[%emt 0:00:16]} Kf8 {[%emt 0:00:30]} 51. h4 {[%emt 0:00:54]} Rf2 {[%emt 0:00:31]} 52. Rg4 {[%emt 0:01:53]} Rb2 {[%emt 0:00:52]} 53. h5 {[%emt 0:00:57]} 1-0